[Event "2nd Irena Warakomska Memorial-A"]
[Site "Suwalki"]
[Date "2018.08.05"]
[Round "6"]
[White "Bukojemski, Adam"]
[Black "Wacior, Maciej"]
[Result "1-0"]
[ECO "B19"]
[WhiteElo "2233"]
[BlackElo "2081"]
[Annotator "NA"]
[PlyCount "58"]
[EventDate "2018.08.01"]
[EventType "swiss"]
[EventCountry "POL"]
[SourceTitle "playchess.com"]
[Source "ChessBase"]
[SourceQuality "1"]
[TimeControl "40/5400+30:1800+30"]

1. e4 {[%emt 0:00:00]} c6 {[%emt 0:00:00]} 2. d4 {[%emt 0:00:00]} d5 {[%emt 0:00:00]} 3. Nd2 {[%emt 0:00:03]} dxe4 {[%emt 0:00:00]} 4. Nxe4 {[%emt 0:00:04]} Bf5 {[%emt 0:00:00]} 5. Ng3 {[%emt 0:00:19]} Bg6 {[%emt 0:00:00]} 6. h4 {[%emt 0:00:12]} h6 {[%emt 0:00:00]} 7. Nf3 {[%emt 0:00:08]} Nd7 {[%emt 0:00:07]} 8. h5 {[%emt 0:00:12]} Bh7 {[%emt 0:00:05]} 9. Bd3 {[%emt 0:00:14]} Bxd3 {[%emt 0:00:05]} 10. Qxd3 {[%emt 0:00:03]} Qc7 {[%emt 0:00:24]} 11. Bd2 {[%emt 0:00:27]} e6 {[%emt 0:00:13]} 12. O-O-O {[%emt 0:00:20]} O-O-O {[%emt 0:00:13]} 13. Ne4 {[%emt 0:02:00]} Nc5 {[%emt 0:01:02]} 14. Nxc5 {[%emt 0:00:54]} Bxc5 {[%emt 0:00:04]} 15. g3 {[%emt 0:04:47]} Nf6 {[%emt 0:01:35]} 16. c4 {[%emt 0:00:39]} Bd6 {[%emt 0:15:59]} 17. Qe2 {[%emt 0:01:05]} c5 {[%emt 0:02:45]} 18. Bc3 {[%emt 0:05:12]} b6 {[%emt 0:05:13]} 19. d5 {[%emt 0:07:16]} Rhe8 {[%emt 0:02:20]} 20. Bxf6 {[%emt 0:02:12]} gxf6 {[%emt 0:01:23]} 21. dxe6 {[%emt 0:02:27]} fxe6 {[%emt 0:04:07]} 22. Qe3 {[%emt 0:03:00]} e5 {[%emt 0:12:18]} 23. Qe4 {[%emt 0:03:56]} Kb8 {[%emt 0:06:32]} 24. Nh4 {[%emt 0:01:43]} Bf8 {[%emt 0:02:14]} 25. Nf5 {[%emt 0:00:28]} Rd4 {[%emt 0:00:10]} 26. Nxd4 {[%emt 0:00:17]} cxd4 {[%emt 0:00:04]} 27. Rxd4 {[%emt 0:01:26]} f5 {[%emt 0:00:56]} 28. Qe2 {[%emt 0:00:38]} Qc6 29. Rd5 Qc7 1-0

[Event "2nd Irena Warakomska Memorial-A"]
[Site "Suwalki"]
[Date "2018.08.05"]
[Round "6"]
[White "Godzwon, Iwo"]
[Black "Roy, Prantik"]
[Result "1-0"]
[ECO "B18"]
[WhiteElo "2222"]
[BlackElo "2377"]
[Annotator "NA"]
[PlyCount "105"]
[EventDate "2018.08.01"]
[EventType "swiss"]
[EventCountry "POL"]
[SourceTitle "playchess.com"]
[Source "ChessBase"]
[SourceQuality "1"]
[TimeControl "40/5400+30:1800+30"]

1. e4 c6 2. d4 d5 3. Nd2 dxe4 4. Nxe4 Bf5 5. Ng3 Bg6 6. h4 h6 7. Nf3 e6 8. h5 Bh7 9. Bd3 Bxd3 10. Qxd3 Nf6 11. Bd2 Be7 12. O-O-O O-O 13. Ne4 Nxe4 14. Qxe4 Qd5 15. Qg4 Kh8 16. Kb1 Nd7 17. Qf4 Nf6 18. Ne5 Rad8 19. Bc1 Qe4 20. Qxe4 Nxe4 21. Be3 Nf6 22. g4 Nd5 23. Bc1 Bf6 24. c4 Nb6 25. b3 Kg8 26. Be3 Rfe8 27. Kc2 Nd7 28. f4 Nxe5 29. dxe5 Be7 30. a4 c5 31. Rd3 Rxd3 32. Kxd3 f6 33. exf6 gxf6 34. g5 fxg5 35. fxg5 hxg5 36. Bxg5 Bxg5 37. Rg1 Rd8+ 38. Ke4 Rd4+ 39. Ke5 Kf7 40. Rxg5 Rh4 41. Kd6 b6 42. a5 Rh3 43. a6 Rxb3 44. Kc6 Rd3 45. h6 Kf6 46. Rh5 Rd8 47. h7 Rh8 48. Kb7 Kg6 49. Rh2 b5 50. cxb5 c4 51. b6 c3 52. bxa7 c2 53. Rxc2 1-0

[Event "2nd Irena Warakomska Memorial-A"]
[Site "Suwalki"]
[Date "2018.08.05"]
[Round "6"]
[White "Jaroch, Karol"]
[Black "Praczukowski, Stanislaw"]
[Result "0-1"]
[ECO "B92"]
[WhiteElo "2222"]
[BlackElo "2136"]
[Annotator "NA"]
[PlyCount "72"]
[EventDate "2018.08.01"]
[EventType "swiss"]
[EventCountry "POL"]
[SourceTitle "playchess.com"]
[Source "ChessBase"]
[SourceQuality "1"]
[TimeControl "40/5400+30:1800+30"]

1. e4 {[%emt 0:00:00]} c5 {[%emt 0:00:00]} 2. Nf3 {[%emt 0:00:00]} d6 {[%emt 0:00:00]} 3. d4 {[%emt 0:00:00]} cxd4 {[%emt 0:00:00]} 4. Nxd4 {[%emt 0:00:00]} Nf6 {[%emt 0:00:00]} 5. Nc3 {[%emt 0:00:00]} a6 {[%emt 0:00:03]} 6. Be2 {[%emt 0:00:52]} e5 {[%emt 0:01:01]} 7. Nb3 {[%emt 0:00:10]} Be7 {[%emt 0:00:05]} 8. Be3 {[%emt 0:00:20]} O-O {[%emt 0:00:30]} 9. O-O {[%emt 0:00:17]} Be6 {[%emt 0:00:40]} 10. Nd5 {[%emt 0:00:19]} Bxd5 {[%emt 0:06:34]} 11. exd5 {[%emt 0:00:10]} Nbd7 {[%emt 0:00:12]} 12. c4 {[%emt 0:01:20]} a5 {[%emt 0:06:34]} 13. Rc1 {[%emt 0:13:45]} b6 {[%emt 0:00:36]} 14. f4 {[%emt 0:16:43]} a4 {[%emt 0:09:41]} 15. Nd2 {[%emt 0:06:09]} exf4 {[%emt 0:05:07]} 16. Bxf4 {[%emt 0:00:51]} Ne5 {[%emt 0:01:16]} 17. Nb1 {[%emt 0:03:41]} Nfd7 {[%emt 0:04:28]} 18. Nc3 {[%emt 0:00:08]} Bg5 {[%emt 0:01:25]} 19. Nxa4 {[%emt 0:08:23]} Bxf4 {[%emt 0:00:19]} 20. Rxf4 {[%emt 0:00:02]} Qg5 {[%emt 0:00:26]} 21. g3 {[%emt 0:00:08]} Ng6 {[%emt 0:03:43]} 22. Rf1 {[%emt 0:00:18]} Qe3+ {[%emt 0:00:35]} 23. Kh1 {[%emt 0:00:20]} Nde5 {[%emt 0:05:18]} 24. b3 {[%emt 0:02:03]} f5 {[%emt 0:03:22]} 25. Rc3 {[%emt 0:00:26]} Qh6 {[%emt 0:01:11]} 26. Qc1 {[%emt 0:21:34]} f4 {[%emt 0:02:52]} 27. a3 {[%emt 0:02:30]} f3 {[%emt 0:07:12]} 28. Bd1 {[%emt 0:00:49]} Qh3 {[%emt 0:09:19]} 29. Rfxf3 {[%emt 0:08:03]} Nxf3 {[%emt 0:02:58]} 30. Bxf3 {[%emt 0:00:09]} Nh4 {[%emt 0:01:39]} 31. gxh4 {[%emt 0:06:10]} Rxf3 {[%emt 0:00:09]} 32. Kg1 {[%emt 0:00:09]} Qg4+ {[%emt 0:00:53]} 33. Kh1 {[%emt 0:00:07]} Raf8 {[%emt 0:00:25]} 34. Rxf3 {[%emt 0:00:30]} Qxf3+ {[%emt 0:00:08]} 35. Kg1 {[%emt 0:00:06]} Qg4+ {[%emt 0:00:46]} 36. Kh1 {[%emt 0:00:06]} Rf2 {[%emt 0:00:40]} 0-1

[Event "2nd Irena Warakomska Memorial-A"]
[Site "Suwalki"]
[Date "2018.08.05"]
[Round "6"]
[White "Buraczewski, Rafal"]
[Black "Sliwerski, Radoslaw"]
[Result "1-0"]
[ECO "A46"]
[WhiteElo "2221"]
[BlackElo "1990"]
[Annotator "NA"]
[PlyCount "31"]
[EventDate "2018.08.01"]
[EventType "swiss"]
[EventCountry "POL"]
[SourceTitle "playchess.com"]
[Source "ChessBase"]
[SourceQuality "1"]
[TimeControl "40/5400+30:1800+30"]

1. d4 {[%emt 0:00:00]} Nf6 {[%emt 0:00:00]} 2. Nf3 {[%emt 0:00:03]} d5 {[%emt 0:00:00]} 3. c3 {[%emt 0:05:13]} e6 {[%emt 0:00:44]} 4. Bf4 {[%emt 0:00:18]} c5 {[%emt 0:00:17]} 5. e3 {[%emt 0:00:09]} Nc6 {[%emt 0:00:42]} 6. Nbd2 {[%emt 0:02:31]} cxd4 {[%emt 0:00:06]} 7. exd4 {[%emt 0:00:17]} Nh5 {[%emt 0:03:53]} 8. Be5 {[%emt 0:09:26]} f6 {[%emt 0:13:09]} 9. Bg3 {[%emt 0:00:04]} Nxg3 {[%emt 0:02:16]} 10. hxg3 {[%emt 0:00:12]} g6 {[%emt 0:01:01]} 11. Bd3 {[%emt 0:00:38]} Bg7 {[%emt 0:00:07]} 12. Rxh7 {[%emt 0:03:44]} f5 {[%emt 0:03:03]} 13. Rxg7 {[%emt 0:03:34]} Rh1+ {[%emt 0:02:29]} 14. Nf1 {[%emt 0:01:40]} Qf6 {[%emt 0:00:20]} 15. Rc7 {[%emt 0:01:32]} Kd8 {[%emt 0:00:24]} 16. Rxc6 {[%emt 0:00:09]} 1-0

[Event "2nd Irena Warakomska Memorial-A"]
[Site "Suwalki"]
[Date "2018.08.05"]
[Round "6"]
[White "Sliwicki, Damian"]
[Black "Rahul, Srivatshav P"]
[Result "1-0"]
[ECO "B40"]
[WhiteElo "2220"]
[BlackElo "2388"]
[Annotator "NA"]
[PlyCount "69"]
[EventDate "2018.08.01"]
[EventType "swiss"]
[EventCountry "POL"]
[SourceTitle "playchess.com"]
[Source "ChessBase"]
[SourceQuality "1"]
[TimeControl "40/5400+30:1800+30"]

1. e4 {[%emt 0:00:04]} c5 {[%emt 0:00:00]} 2. Nf3 {[%emt 0:00:19]} e6 {[%emt 0:00:00]} 3. c4 {[%emt 0:00:39]} Nc6 {[%emt 0:00:00]} 4. Nc3 {[%emt 0:00:25]} Nd4 {[%emt 0:00:20]} 5. d3 {[%emt 0:05:32]} Ne7 {[%emt 0:00:37]} 6. Nxd4 {[%emt 0:06:27]} cxd4 {[%emt 0:00:34]} 7. Ne2 {[%emt 0:00:06]} Nc6 {[%emt 0:00:12]} 8. g3 {[%emt 0:01:17]} Rb8 {[%emt 0:00:17]} 9. Bg2 {[%emt 0:00:41]} b5 {[%emt 0:00:25]} 10. O-O {[%emt 0:02:50]} a5 {[%emt 0:13:54]} 11. b3 {[%emt 0:00:52]} Be7 {[%emt 0:10:09]} 12. Kh1 {[%emt 0:05:24]} bxc4 {[%emt 0:04:43]} 13. dxc4 {[%emt 0:01:36]} e5 {[%emt 0:00:54]} 14. f4 {[%emt 0:03:02]} d6 {[%emt 0:01:31]} 15. Ba3 {[%emt 0:00:50]} a4 {[%emt 0:12:35]} 16. Nc1 {[%emt 0:03:58]} axb3 {[%emt 0:09:48]} 17. axb3 {[%emt 0:00:43]} Qb6 {[%emt 0:00:22]} 18. fxe5 {[%emt 0:20:46]} dxe5 {[%emt 0:07:58]} 19. Qh5 {[%emt 0:05:18]} g6 {[%emt 0:04:28]} 20. Qh6 {[%emt 0:02:03]} Bxa3 {[%emt 0:04:32]} 21. Qg7 {[%emt 0:01:31]} Rf8 {[%emt 0:00:43]} 22. Rxa3 {[%emt 0:00:14]} Qc5 {[%emt 0:03:24]} 23. Ra2 {[%emt 0:06:37]} h5 {[%emt 0:08:23]} 24. Nd3 {[%emt 0:10:13]} Qe7 {[%emt 0:00:09]} 25. b4 {[%emt 0:02:07]} Be6 {[%emt 0:06:52]} 26. Nxe5 {[%emt 0:00:13]} Nxe5 {[%emt 0:02:11]} 27. Qxe5 {[%emt 0:00:04]} Qxb4 {[%emt 0:00:07]} 28. Ra6 {[%emt 0:05:27]} Rd8 {[%emt 0:03:26]} 29. Rf6 {[%emt 0:06:54]} Qxc4 {[%emt 0:02:49]} 30. Raxe6+ {[%emt 0:03:34]} fxe6 {[%emt 0:00:02]} 31. Rxe6+ {[%emt 0:00:09]} Kd7 {[%emt 0:00:06]} 32. Re7+ {[%emt 0:00:11]} Kc8 {[%emt 0:00:08]} 33. Bh3+ {[%emt 0:00:21]} Rd7 {[%emt 0:00:50]} 34. Re8+ {[%emt 0:00:39]} Kb7 {[%emt 0:00:28]} 35. Rxf8 {[%emt 0:00:26]} 1-0

[Event "2nd Irena Warakomska Memorial-A"]
[Site "Suwalki"]
[Date "2018.08.05"]
[Round "6"]
[White "Zaika, Daniil"]
[Black "Kuchava, Ana"]
[Result "1-0"]
[ECO "D30"]
[WhiteElo "2213"]
[BlackElo "2124"]
[Annotator "NA"]
[PlyCount "67"]
[EventDate "2018.08.01"]
[EventType "swiss"]
[EventCountry "POL"]
[SourceTitle "playchess.com"]
[Source "ChessBase"]
[SourceQuality "1"]
[TimeControl "40/5400+30:1800+30"]

1. d4 {[%emt 0:00:00]} d5 {[%emt 0:00:00]} 2. c4 {[%emt 0:00:00]} e6 {[%emt 0:00:08]} 3. Nf3 {[%emt 0:00:10]} Nf6 {[%emt 0:00:07]} 4. g3 {[%emt 0:00:10]} Bb4+ {[%emt 0:00:05]} 5. Nbd2 {[%emt 0:00:13]} O-O {[%emt 0:00:24]} 6. Bg2 {[%emt 0:04:42]} dxc4 {[%emt 0:16:25]} 7. Qc2 {[%emt 0:08:00]} Nc6 8. e3 a6 9. O-O Bd7 10. Nxc4 Rc8 11. a3 Be7 12. b4 Re8 13. Rd1 b5 14. Nce5 Nxe5 15. Nxe5 Nd5 16. Bb2 a5 17. e4 Nb6 18. bxa5 Na4 19. Rab1 Nxb2 20. Qxb2 Ra8 21. Qc3 c6 22. Nxd7 Qxd7 23. d5 cxd5 24. exd5 Rac8 25. Qb3 exd5 26. Rxd5 Qc7 27. Rxb5 Qc3 28. a6 Qxb3 29. R5xb3 Bc5 30. Rb7 Red8 31. a7 Kf8 32. Bd5 Bxa7 33. Rxf7+ Kg8 34. Rbb7 1-0

[Event "2nd Irena Warakomska Memorial-A"]
[Site "Suwalki"]
[Date "2018.08.05"]
[Round "6"]
[White "Fus, Jakub"]
[Black "Cukrowski, Filip"]
[Result "1/2-1/2"]
[ECO "B30"]
[WhiteElo "2210"]
[BlackElo "2404"]
[Annotator "NA"]
[PlyCount "60"]
[EventDate "2018.08.01"]
[EventType "swiss"]
[EventCountry "POL"]
[SourceTitle "playchess.com"]
[Source "ChessBase"]
[SourceQuality "1"]
[TimeControl "40/5400+30:1800+30"]

1. e4 {[%emt 0:00:00]} c5 {[%emt 0:02:06]} 2. Nf3 {[%emt 0:00:00]} Nc6 {[%emt 0:01:34]} 3. Bb5 {[%emt 0:00:26]} d6 {[%emt 0:01:29]} 4. d4 {[%emt 0:04:23]} cxd4 {[%emt 0:00:09]} 5. Qxd4 {[%emt 0:00:08]} a6 {[%emt 0:00:30]} 6. Bxc6+ {[%emt 0:00:19]} bxc6 {[%emt 0:00:05]} 7. O-O {[%emt 0:01:02]} e5 {[%emt 0:01:27]} 8. Qa4 {[%emt 0:01:21]} Qc7 {[%emt 0:03:18]} 9. c4 {[%emt 0:00:51]} Bg4 {[%emt 0:06:38]} 10. Nbd2 {[%emt 0:01:47]} Nf6 {[%emt 0:00:52]} 11. c5 {[%emt 0:01:27]} Nd7 {[%emt 0:03:35]} 12. cxd6 {[%emt 0:00:52]} Bxd6 {[%emt 0:00:07]} 13. h3 {[%emt 0:03:50]} Be6 {[%emt 0:07:04]} 14. Qc2 {[%emt 0:11:09]} Be7 {[%emt 0:13:21]} 15. b3 {[%emt 0:01:07]} O-O {[%emt 0:02:09]} 16. Bb2 {[%emt 0:00:29]} a5 {[%emt 0:03:28]} 17. Rac1 {[%emt 0:14:35]} Rfc8 {[%emt 0:01:50]} 18. Nc4 {[%emt 0:03:42]} f6 {[%emt 0:00:22]} 19. Rfd1 {[%emt 0:01:08]} Nb6 {[%emt 0:13:55]} 20. Nfd2 {[%emt 0:15:12]} a4 {[%emt 0:01:16]} 21. Nxb6 {[%emt 0:00:29]} Qxb6 {[%emt 0:00:56]} 22. Nc4 {[%emt 0:00:20]} Qb5 {[%emt 0:01:14]} 23. Rd3 {[%emt 0:00:50]} axb3 {[%emt 0:01:10]} 24. axb3 {[%emt 0:01:15]} Rd8 {[%emt 0:04:58]} 25. Rxd8+ {[%emt 0:06:08]} Rxd8 {[%emt 0:00:32]} 26. Ba3 {[%emt 0:00:48]} Bxa3 {[%emt 0:17:42]} 27. Nxa3 {[%emt 0:00:06]} Qxb3 {[%emt 0:04:45]} 28. Qxb3 {[%emt 0:00:10]} Bxb3 {[%emt 0:00:06]} 29. Rxc6 {[%emt 0:00:04]} Ra8 {[%emt 0:03:01]} 30. Nb5 {[%emt 0:00:37]} Ba4 {[%emt 0:01:09]} 1/2-1/2

[Event "2nd Irena Warakomska Memorial-A"]
[Site "Suwalki"]
[Date "2018.08.05"]
[Round "6"]
[White "Kokoszczynski, Jan"]
[Black "Schippers, Maurice"]
[Result "1-0"]
[ECO "B01"]
[WhiteElo "2187"]
[BlackElo "2303"]
[Annotator "NA"]
[PlyCount "147"]
[EventDate "2018.08.01"]
[EventType "swiss"]
[EventCountry "POL"]
[SourceTitle "playchess.com"]
[Source "ChessBase"]
[SourceQuality "1"]
[TimeControl "40/5400+30:1800+30"]

1. e4 {[%emt 0:00:00]} d5 {[%emt 0:00:00]} 2. exd5 {[%emt 0:00:00]} Qxd5 {[%emt 0:00:00]} 3. Nc3 {[%emt 0:00:00]} Qd6 {[%emt 0:00:02]} 4. d4 {[%emt 0:00:23]} Nf6 {[%emt 0:00:25]} 5. Nf3 {[%emt 0:04:39]} c6 {[%emt 0:02:28]} 6. g3 {[%emt 0:05:05]} Bf5 {[%emt 0:03:07]} 7. Bg2 {[%emt 0:03:18]} g6 {[%emt 0:01:22]} 8. O-O Bg7 {[%emt 0:02:07]} 9. Re1 {[%emt 0:07:41]} O-O {[%emt 0:08:14]} 10. a3 {[%emt 0:08:45]} Qd8 {[%emt 0:14:27]} 11. Bf4 Nbd7 {[%emt 0:00:28]} 12. Qd2 {[%emt 0:01:53]} Nb6 {[%emt 0:04:06]} 13. Rad1 Re8 {[%emt 0:02:10]} 14. h3 {[%emt 0:07:28]} Nbd5 15. Nxd5 {[%emt 0:05:21]} Nxd5 {[%emt 0:01:42]} 16. Bg5 {[%emt 0:05:36]} f6 {[%emt 0:14:14]} 17. g4 Bxc2 18. Qxc2 {[%emt 0:01:17]} fxg5 {[%emt 0:00:39]} 19. Qb3 {[%emt 0:16:33]} Qb6 20. Qxb6 {[%emt 0:00:09]} axb6 {[%emt 0:16:26]} 21. Nxg5 {[%emt 0:03:34]} Nf4 22. Re4 {[%emt 0:00:04]} Nxg2 {[%emt 0:09:07]} 23. Kxg2 {[%emt 0:01:33]} Ra5 {[%emt 0:05:09]} 24. Ne6 {[%emt 0:02:25]} Bf6 {[%emt 0:00:27]} 25. f4 h6 26. Rd2 {[%emt 0:05:46]} Kf7 {[%emt 0:01:57]} 27. Kg3 {[%emt 0:00:57]} g5 {[%emt 0:02:32]} 28. f5 {[%emt 0:11:08]} Rc8 {[%emt 0:01:26]} 29. Kf3 {[%emt 0:00:36]} Rd5 {[%emt 0:02:00]} 30. Ree2 {[%emt 0:02:49]} Rh8 {[%emt 0:01:25]} 31. Ke4 {[%emt 0:01:32]} Rd7 {[%emt 0:01:02]} 32. Rc2 {[%emt 0:02:39]} Ra8 {[%emt 0:02:47]} 33. Rc4 {[%emt 0:02:04]} Ra5 34. Rd2 Rdd5 {[%emt 0:04:23]} 35. Rd3 {[%emt 0:00:41]} Rd6 {[%emt 0:01:02]} 36. b4 {[%emt 0:00:28]} Ra4 37. Nc7 {[%emt 0:02:59]} Rd7 {[%emt 0:01:52]} 38. Ne6 c5 39. dxc5 {[%emt 0:01:19]} Rxd3 {[%emt 0:01:12]} 40. Kxd3 {[%emt 0:00:00]} Rxa3+ {[%emt 0:00:00]} 41. Ke4 b5 42. c6 {[%emt 0:18:27]} bxc6 {[%emt 0:09:00]} 43. Rxc6 {[%emt 0:03:43]} Ke8 {[%emt 0:09:18]} 44. Rb6 {[%emt 0:03:39]} Rxh3 45. Rxb5 Kd7 {[%emt 0:07:14]} 46. Rb8 {[%emt 0:00:36]} Rh1 {[%emt 0:00:45]} 47. b5 {[%emt 0:02:18]} Re1+ 48. Kf3 Kd6 {[%emt 0:00:29]} 49. Rd8+ {[%emt 0:03:17]} Ke5 {[%emt 0:00:14]} 50. Nc5 {[%emt 0:01:51]} Rf1+ 51. Ke3 Re1+ {[%emt 0:01:27]} 52. Kf3 {[%emt 0:00:32]} Rf1+ {[%emt 0:00:17]} 53. Ke2 {[%emt 0:00:06]} Rb1 {[%emt 0:01:48]} 54. b6 {[%emt 0:00:02]} Kf4 {[%emt 0:04:31]} 55. b7 Be5 {[%emt 0:01:21]} 56. Nd3+ {[%emt 0:00:33]} Ke4 {[%emt 0:00:19]} 57. Nxe5 Rxb7 {[%emt 0:01:33]} 58. Nf3 {[%emt 0:03:26]} Rb4 59. Rd7 {[%emt 0:00:31]} Kf4 {[%emt 0:01:03]} 60. Rxe7 {[%emt 0:00:02]} Kxg4 {[%emt 0:01:12]} 61. f6 {[%emt 0:00:29]} Rb2+ {[%emt 0:00:58]} 62. Nd2 Rb8 63. f7 {[%emt 0:01:09]} Rf8 {[%emt 0:00:33]} 64. Ne4 {[%emt 0:00:32]} Kh5 {[%emt 0:00:13]} 65. Nd6 Kg6 {[%emt 0:00:12]} 66. Re8 {[%emt 0:00:50]} Kg7 {[%emt 0:00:05]} 67. Kf3 {[%emt 0:00:20]} h5 68. Kg3 h4+ {[%emt 0:02:34]} 69. Kg4 {[%emt 0:00:47]} h3 {[%emt 0:00:05]} 70. Kxh3 {[%emt 0:00:05]} g4+ {[%emt 0:00:05]} 71. Kxg4 {[%emt 0:00:06]} Rh8 {[%emt 0:00:00]} 72. Rxh8 {[%emt 0:00:12]} Kg6 {[%emt 0:00:00]} 73. Rg8+ {[%emt 0:00:26]} Kh7 74. Kf4 {[%emt 0:00:19]} 1-0

[Event "2nd Irena Warakomska Memorial-A"]
[Site "Suwalki"]
[Date "2018.08.05"]
[Round "6"]
[White "Dzhuguryan, Tygran"]
[Black "Tihonov, Jurij"]
[Result "1/2-1/2"]
[ECO "A41"]
[WhiteElo "2178"]
[BlackElo "2385"]
[Annotator "NA"]
[PlyCount "94"]
[EventDate "2018.08.01"]
[EventType "swiss"]
[EventCountry "POL"]
[SourceTitle "playchess.com"]
[Source "ChessBase"]
[SourceQuality "1"]
[TimeControl "40/5400+30:1800+30"]

1. d4 {[%emt 0:00:00]} d6 {[%emt 0:00:00]} 2. e4 {[%emt 0:00:04]} Nf6 {[%emt 0:00:00]} 3. Bd3 {[%emt 0:01:39]} e5 {[%emt 0:05:28]} 4. Nf3 {[%emt 0:09:51]} exd4 {[%emt 0:08:41]} 5. Nxd4 {[%emt 0:00:07]} g6 {[%emt 0:00:28]} 6. O-O {[%emt 0:01:25]} Bg7 {[%emt 0:00:04]} 7. c3 {[%emt 0:17:18]} O-O {[%emt 0:00:34]} 8. Bg5 {[%emt 0:00:27]} h6 {[%emt 0:00:44]} 9. Bh4 {[%emt 0:00:24]} Re8 {[%emt 0:17:38]} 10. Re1 {[%emt 0:01:19]} c5 {[%emt 0:06:03]} 11. Nf3 {[%emt 0:05:15]} Nc6 {[%emt 0:01:18]} 12. Nbd2 {[%emt 0:04:34]} Be6 {[%emt 0:02:24]} 13. h3 {[%emt 0:11:27]} Qb6 {[%emt 0:03:55]} 14. Bxf6 {[%emt 0:04:57]} Bxf6 {[%emt 0:00:00]} 15. Qc2 {[%emt 0:00:17]} Na5 {[%emt 0:12:13]} 16. Re3 {[%emt 0:12:58]} Bg7 {[%emt 0:00:41]} 17. Rae1 {[%emt 0:00:18]} Rac8 {[%emt 0:05:30]} 18. Qb1 {[%emt 0:00:07]} Qd8 {[%emt 0:03:11]} 19. Bb5 {[%emt 0:05:01]} Re7 {[%emt 0:01:21]} 20. Bf1 {[%emt 0:01:53]} a6 {[%emt 0:01:35]} 21. h4 {[%emt 0:00:59]} Re8 {[%emt 0:02:40]} 22. g3 {[%emt 0:02:30]} b5 {[%emt 0:01:21]} 23. Rd1 {[%emt 0:02:51]} Nc6 {[%emt 0:03:36]} 24. a4 {[%emt 0:02:41]} Qb6 {[%emt 0:04:06]} 25. axb5 {[%emt 0:00:07]} axb5 {[%emt 0:00:20]} 26. Kh2 {[%emt 0:00:39]} Bg4 {[%emt 0:08:02]} 27. Rde1 {[%emt 0:03:21]} h5 {[%emt 0:01:12]} 28. Ng5 {[%emt 0:02:15]} Bh6 {[%emt 0:05:14]} 29. f4 {[%emt 0:01:24]} c4 {[%emt 0:01:09]} 30. Bg2 {[%emt 0:01:34]} d5 {[%emt 0:01:16]} 31. e5 {[%emt 0:01:03]} Bxg5 {[%emt 0:00:45]} 32. fxg5 {[%emt 0:00:03]} Bf5 {[%emt 0:00:35]} 33. Qc1 {[%emt 0:01:04]} d4 {[%emt 0:00:21]} 34. cxd4 {[%emt 0:00:11]} Nxd4 {[%emt 0:00:19]} 35. Be4 {[%emt 0:02:41]} Red8 {[%emt 0:00:44]} 36. Bxf5 {[%emt 0:00:57]} Nxf5 {[%emt 0:00:11]} 37. R3e2 {[%emt 0:00:26]} Nd4 {[%emt 0:02:08]} 38. Rg2 {[%emt 0:02:00]} b4 {[%emt 0:00:22]} 39. Qb1 {[%emt 0:00:00]} Qe6 {[%emt 0:00:00]} 40. Qe4 {[%emt 0:00:00]} c3 {[%emt 0:00:00]} 41. bxc3 {[%emt 0:03:23]} bxc3 {[%emt 0:04:42]} 42. Nf3 {[%emt 0:00:08]} Nxf3+ {[%emt 0:00:28]} 43. Qxf3 {[%emt 0:00:02]} Qf5 {[%emt 0:04:34]} 44. e6 {[%emt 0:01:47]} fxe6 {[%emt 0:03:17]} 45. Re5 {[%emt 0:00:02]} Qd3 {[%emt 0:00:12]} 46. Re3 {[%emt 0:03:41]} Qc4 {[%emt 0:06:34]} 47. Rc2 {[%emt 0:00:02]} Qd5 {[%emt 0:12:20]} 1/2-1/2

[Event "2nd Irena Warakomska Memorial-A"]
[Site "Suwalki"]
[Date "2018.08.05"]
[Round "6"]
[White "Zgadzaj, Rafal"]
[Black "Sowul, Bartosz"]
[Result "1/2-1/2"]
[ECO "A37"]
[WhiteElo "2154"]
[BlackElo "2257"]
[Annotator "NA"]
[PlyCount "84"]
[EventDate "2018.08.01"]
[EventType "swiss"]
[EventCountry "POL"]
[SourceTitle "playchess.com"]
[Source "ChessBase"]
[SourceQuality "1"]
[TimeControl "40/5400+30:1800+30"]

1. c4 {[%emt 0:00:00]} g6 {[%emt 0:01:37]} 2. g3 {[%emt 0:00:00]} Bg7 {[%emt 0:00:05]} 3. Bg2 {[%emt 0:00:00]} c5 {[%emt 0:00:11]} 4. Nc3 {[%emt 0:00:20]} Nc6 {[%emt 0:00:04]} 5. Nf3 {[%emt 0:01:01]} e5 {[%emt 0:02:47]} 6. O-O {[%emt 0:01:02]} Nge7 {[%emt 0:00:10]} 7. Ne1 {[%emt 0:00:11]} d6 {[%emt 0:00:25]} 8. Nc2 {[%emt 0:00:05]} Be6 {[%emt 0:00:21]} 9. Ne3 {[%emt 0:00:03]} Qd7 {[%emt 0:00:37]} 10. Ned5 {[%emt 0:04:59]} h6 {[%emt 0:01:52]} 11. a3 {[%emt 0:06:37]} O-O {[%emt 0:01:45]} 12. b4 {[%emt 0:09:52]} cxb4 {[%emt 0:10:15]} 13. axb4 {[%emt 0:00:11]} Bxd5 {[%emt 0:00:46]} 14. cxd5 {[%emt 0:07:38]} Nxb4 {[%emt 0:00:29]} 15. Qa4 {[%emt 0:11:31]} Qxa4 {[%emt 0:01:01]} 16. Rxa4 {[%emt 0:00:07]} Na6 {[%emt 0:00:23]} 17. Ba3 {[%emt 0:04:42]} Nc8 {[%emt 0:01:03]} 18. Nb5 {[%emt 0:15:16]} Rd8 {[%emt 0:01:30]} 19. Rc1 {[%emt 0:02:43]} Nb6 {[%emt 0:01:59]} 20. Ra5 {[%emt 0:00:42]} Bf8 {[%emt 0:00:39]} 21. Bh3 {[%emt 0:06:36]} Nc5 {[%emt 0:06:12]} 22. Rxa7 {[%emt 0:14:02]} Rxa7 {[%emt 0:04:53]} 23. Nxa7 {[%emt 0:00:01]} Nxd5 {[%emt 0:00:16]} 24. Bg2 {[%emt 0:04:42]} Nb6 {[%emt 0:02:40]} 25. Nb5 {[%emt 0:01:12]} Nbd7 {[%emt 0:04:59]} 26. e3 {[%emt 0:01:18]} e4 {[%emt 0:01:39]} 27. Nc3 {[%emt 0:02:56]} f5 {[%emt 0:02:33]} 28. f3 {[%emt 0:00:15]} Nd3 {[%emt 0:06:55]} 29. Rb1 {[%emt 0:01:24]} Ra8 {[%emt 0:00:09]} 30. Bb4 {[%emt 0:00:35]} Nxb4 31. Rxb4 {[%emt 0:00:00]} Ra1+ {[%emt 0:11:35]} 32. Nb1 {[%emt 0:03:26]} Nc5 {[%emt 0:03:02]} 33. fxe4 {[%emt 0:00:14]} fxe4 {[%emt 0:00:06]} 34. Bf1 {[%emt 0:00:25]} Ra4 {[%emt 0:20:45]} 35. Rxa4 {[%emt 0:00:35]} Nxa4 {[%emt 0:00:05]} 36. Bc4+ {[%emt 0:00:05]} Kg7 {[%emt 0:02:34]} 37. Bd5 {[%emt 0:00:09]} Nc5 {[%emt 0:00:10]} 38. Nc3 {[%emt 0:00:06]} Kf6 {[%emt 0:00:12]} 39. Nxe4+ {[%emt 0:01:00]} Nxe4 {[%emt 0:00:27]} 40. Bxe4 {[%emt 0:00:00]} b5 {[%emt 0:00:00]} 41. Kf2 {[%emt 0:01:19]} b4 {[%emt 0:00:39]} 42. Bc2 {[%emt 0:01:47]} Be7 {[%emt 0:01:45]} 1/2-1/2